fUST/lending_fUST_20240224
["ID","MTS","AMOUNT","RATE_DAILY","PERIOD"]
[314974916,1708709446265,-1695.71,0.00019726,2]
[314974918,1708709446276,-1234.76,0.00019726,2]
[314974920,1708709446286,-1093.64,0.00019726,2]
[314974923,1708709446297,-485.15213551,0.00019726,2]
[314974925,1708709446307,-13771.79,0.00019726,2]
[314974927,1708709446318,-7490.43,0.00019726,2]
[314974929,1708709446328,-1391.34,0.00019726,2]
[314974931,1708709446339,-2334.27,0.00019726,2]
[314974933,1708709446349,-623.86,0.00019726,2]
[314974935,1708709446361,-500.0,0.00019726,2]
[314974937,1708709446372,-1821.8,0.00019726,2]
[314974939,1708709446382,-1222.17,0.00019726,2]
[314974941,1708709446393,-1294.01,0.00019726,2]
[314974943,1708709446403,-881.59,0.00019726,2]
[314974946,1708709446414,-1129.69,0.00019726,2]
[314974948,1708709446424,-500.0,0.00019726,2]
[314974950,1708709446435,-4551.45,0.00019726,2]
[314974952,1708709446446,-5519.15,0.00019726,2]
[314974954,1708709446456,-13795.41,0.00019726,2]
[314974956,1708709446467,-300.0,0.00019735,2]
[314974958,1708709446477,-1000.0,0.00019737,2]
[314974960,1708709446488,-10030.00916828,0.000198,2]
[314974978,1708709446638,-580.0,0.000198,2]
[314974981,1708709446655,-1000.0,0.0001983,2]
[314974983,1708709446666,-1000.0,0.00019872,2]
[314974985,1708709446675,-2602.33794297,0.000199,2]
[314974987,1708709446684,-1000.0,0.00019906,2]
[314974988,1708709446694,-1000.0,0.0001993,2]
[314974991,1708709446703,-1000.0,0.0001994,2]
[314974993,1708709446713,-2289.51885379,0.00019998,2]
[314974995,1708709446722,-293.50440134,0.00019999,2]
[314974997,1708709446731,-1278578.89457911,0.0002,2]
[314974999,1708709446745,-1818.36784443,0.0002,2]
[314975008,1708709446823,-210.26681257,0.00019177,2]
[314975010,1708709446833,-52326.96,0.00019442,3]
[314975012,1708709446843,-64031.53316988,0.0002,2]
[314975891,1708710632443,-639.93763963,0.00018799,2]
[314975893,1708710632453,-4484.39266594,0.000188,2]
[314975926,1708710641391,-1965.1149744,0.000188,2]
[314975928,1708710641403,-8747.89384397,0.000188,2]
[314975930,1708710641416,-3978.62507858,0.000188,2]
[314975932,1708710641427,-3740.97343711,0.000188,2]
[314975934,1708710641436,-332.35796354,0.000189,2]
[314975936,1708710641446,-158.25912794,0.00019078,2]
[314975937,1708710641455,-270.29,0.00019168,3]
[314975939,1708710641464,-810.91,0.00019168,3]
[314975941,1708710641474,-500.0,0.00019178,2]
[314975943,1708710641484,-790.88,0.00019178,2]
[314975945,1708710641493,-500.0,0.00019178,2]
[314975947,1708710641503,-324.8875442,0.00019178,2]
[314975949,1708710641513,-500.0,0.00019178,2]
[314975951,1708710641522,-500.0,0.00019178,2]
[314975953,1708710641531,-500.0,0.00019178,2]
[314975955,1708710641540,-500.0,0.00019178,2]
[314975957,1708710641549,-489.02410504,0.00019178,2]
[314975959,1708710641559,-500.0,0.00019178,2]
[314975960,1708710641569,-582.34,0.00019178,2]
[314975962,1708710641579,-500.0,0.00019178,2]
[314975964,1708710641588,-500.0,0.00019178,2]
[314975966,1708710641597,-500.0,0.00019178,2]
[314975968,1708710641607,-1021.34,0.00019178,2]
[314975970,1708710641617,-207.87,0.00019178,2]
[314975972,1708710641626,-258.11466525,0.00019178,2]
[314975974,1708710641635,-434.18077611,0.00019178,2]
[314975976,1708710641644,-532.93,0.00019178,2]
[314975978,1708710641653,-500.0,0.00019178,2]
[314975980,1708710641662,-500.0,0.00019178,2]
[314975982,1708710641675,-967.55,0.00019178,2]
[314975984,1708710641684,-500.0,0.00019178,2]
[314975986,1708710641693,-500.0,0.00019178,2]
[314975988,1708710641702,-426.48039891,0.00019178,2]
[314975990,1708710641714,-73.51960109,0.00019178,2]
[314975992,1708710641724,-500.0,0.00019178,2]
[314975994,1708710641733,-35.36174908,0.00019178,2]
[314976025,1708710642053,-5201.69915455,0.00019178,2]
[314976027,1708710642065,-1979.42258337,0.00019178,2]
[314976139,1708710643440,-500.0,0.00019178,2]
[314976141,1708710643450,-500.0,0.00019178,2]
[314976143,1708710643460,-500.0,0.00019178,2]
[314976146,1708710643470,-500.0,0.00019178,2]
[314976147,1708710643480,-880.21,0.00019178,2]
[314976149,1708710643489,-259.04002,0.00019178,2]
[314976152,1708710643506,-1006.0,0.00019178,2]
[314976155,1708710643518,-11.35998,0.00019178,2]
[314976157,1708710643527,-549.16,0.00019178,2]
[314976158,1708710643537,-1093.61,0.00019178,2]
[314976161,1708710643546,-956.94,0.00019178,2]
[314976162,1708710643556,-1983.35394,0.00019178,2]
[314976165,1708710643568,-1532.3554603,0.00019178,2]
[314976464,1708710646546,-3324.9005997,0.00019178,2]
[314976466,1708710646556,-1489.91,0.00019178,2]
[314976468,1708710646566,-500.0,0.00019178,2]
[314976470,1708710646575,-500.0,0.00019178,2]
[314976472,1708710646584,-2042.49,0.00019178,2]
[314976474,1708710646594,-631.01,0.00019178,2]
[314976476,1708710646603,-500.0,0.00019178,2]
[314976478,1708710646612,-1069.4,0.00019178,2]
[314976480,1708710646621,-500.0,0.00019178,2]
[314976482,1708710646631,-500.0,0.00019178,2]
[314976484,1708710646640,-500.0,0.00019178,2]
[314976485,1708710646649,-549.33868893,0.00019178,2]
[314976488,1708710646659,-12531.07,0.00019178,2]
[314976490,1708710646673,-500.75121153,0.00019178,2]
[314976492,1708710646683,-500.0,0.00019178,2]
[314976494,1708710646692,-59.12952249,0.00019178,2]
[314976496,1708710646704,-1197.80047751,0.00019178,2]
[314976498,1708710646714,-497.39952249,0.00019178,2]
[314976500,1708710646727,-491.08047751,0.00019178,2]
[314976502,1708710646736,-8.91952249,0.00019178,2]
[314976978,1708710951434,177.82123,0.00018084,2]
[314976979,1708710959685,24900.0,0.00018084,2]
[314976981,1708711159505,250.0,0.00018084,2]
[314976982,1708711464002,305.315535,0.0002,8]
[314976985,1708711568262,163.38875591,0.00018062,2]
[314977019,1708711838577,-4697.05712449,0.00018161,2]
[314977020,1708711838587,-2952.94287551,0.00018162,2]
[314977021,1708711838635,-1732.56959319,0.00018162,2]
[314977023,1708711838644,-483.66008622,0.000187,2]
[314977286,1708711841854,-253.06968301,0.000187,2]
[314977289,1708711841864,-367.0742138,0.000189,2]
[314977291,1708711841877,-95.4570754,0.000189,2]
[314977293,1708711841886,-175.0545357,0.00019078,2]
[314977295,1708711841895,-336.98878551,0.00019078,2]
[314977297,1708711841905,-336.98878551,0.00019147,2]
[314977299,1708711841913,-167.6391983,0.00019178,2]
[314977301,1708711841923,-500.0,0.00019178,2]
[314977303,1708711841932,-319.0236189,0.00019178,2]
[314977305,1708711841944,-180.9763811,0.00019178,2]
[314977307,1708711841953,-500.0,0.00019178,2]
[314977309,1708711841962,-500.0,0.00019178,2]
[314977311,1708711841972,-500.0,0.00019178,2]
[314977313,1708711841981,-500.0,0.00019178,2]
[314977315,1708711841990,-500.0,0.00019178,2]
[314977317,1708711842001,-634.84,0.00019178,2]
[314977319,1708711842011,-500.0,0.00019178,2]
[314977321,1708711842020,-500.0,0.00019178,2]
[314977323,1708711842029,-500.0,0.00019178,2]
[314977325,1708711842038,-500.0,0.00019178,2]
[314977327,1708711842048,-501.68694463,0.00019178,2]
[314977329,1708711842057,-496.03350483,0.00019178,2]
[314977331,1708711842067,-500.0,0.00019178,2]
[314977333,1708711842076,-500.0,0.00019178,2]
[314977335,1708711842085,-232.63178787,0.00019178,2]
[314977337,1708711842094,-500.0,0.00019178,2]
[314977339,1708711842103,-500.0,0.00019178,2]
[314977341,1708711842112,-500.0,0.00019178,2]
[314977343,1708711842122,-405.0519369,0.00019178,2]
[314977345,1708711842130,-1029.3,0.00019178,2]
[314977347,1708711842139,-500.0,0.00019178,2]
[314977349,1708711842149,-243.00605471,0.00019178,2]
[314977351,1708711842157,-500.0,0.00019178,2]
[314977353,1708711842166,-500.0,0.00019178,2]
[314977355,1708711842176,-500.0,0.00019178,2]
[314977357,1708711842185,-500.0,0.00019178,2]
[314977359,1708711842194,-500.0,0.00019178,2]
[314977361,1708711842204,-500.0,0.00019178,2]
[314977363,1708711842213,-500.0,0.00019178,2]
[314977365,1708711842222,-500.0,0.00019178,2]
[314977367,1708711842231,-500.0,0.00019178,2]
[314977369,1708711842241,-500.0,0.00019178,2]
[314977371,1708711842250,-500.0,0.00019178,2]
[314977373,1708711842259,-500.0,0.00019178,2]
[314977375,1708711842268,-666.91,0.00019178,2]
[314977377,1708711842277,-500.0,0.00019178,2]
[314977379,1708711842287,-500.0,0.00019178,2]
[314977381,1708711842295,-500.0,0.00019178,2]
[314977383,1708711842306,-500.0,0.00019178,2]
[314977385,1708711842315,-1038.89,0.00019178,2]
[314977387,1708711842326,-500.0,0.00019178,2]
[314977389,1708711842335,-500.0,0.00019178,2]
[314977391,1708711842345,-500.0,0.00019178,2]
[314977393,1708711842354,-500.0,0.00019178,2]
[314977395,1708711842363,-510.73,0.00019178,2]
[314977397,1708711842372,-500.0,0.00019178,2]
[314977399,1708711842381,-500.0,0.00019178,2]
[314977401,1708711842390,-500.0,0.00019178,2]
[314977403,1708711842399,-500.0,0.00019178,2]
[314977405,1708711842408,-233.83225707,0.00019178,2]
[314977407,1708711842417,-500.0,0.00019178,2]
[314977409,1708711842427,-500.0,0.00019178,2]
[314977410,1708711842436,-500.0,0.00019178,2]
[314977413,1708711842447,-864.37,0.00019178,2]
[314977415,1708711842457,-2318.93,0.00019178,2]
[314977417,1708711842466,-1223.22,0.00019178,2]
[314977419,1708711842475,-785.32,0.00019178,2]
[314977421,1708711842484,-547.11,0.00019178,2]
[314977422,1708711842496,-1076.92,0.00019178,2]
[314977424,1708711842505,-1436.93,0.00019178,2]
[314977426,1708711842513,-296.56742759,0.00019178,2]
[314977429,1708711842526,-783.85257241,0.00019178,2]
[314977431,1708711842535,-267.16877444,0.00019178,2]
[314977433,1708711842547,-236.26386386,0.00019178,2]
[314977435,1708711842556,-500.0,0.00019178,2]
[314977437,1708711842566,-263.71689822,0.00019178,2]
[314977439,1708711842577,-2943.3,0.00019178,2]
[314977548,1708711843635,-326.53305996,0.00019178,2]
[314978554,1708712073147,-308.3541928,0.000189,2]
[314978555,1708712073172,-500.0,0.00019178,2]
[314978556,1708712073195,-500.0,0.00019178,2]
[314978557,1708712073217,-430.6458072,0.00019178,2]
[314978630,1708713031847,-205.56946186,0.000189,2]
[314978631,1708713031859,-1590.66884679,0.00019063,2]
[314978632,1708713031869,-3692.40170211,0.00019064,2]
[314978674,1708713037732,-912.8,0.00019064,2]
[314978685,1708713037829,-1000.036237,0.00019064,2]
[314978687,1708713037838,-202.19327133,0.00019078,2]
[314978689,1708713037848,-777.34529367,0.00019176,2]
[314978691,1708713037857,-300.0,0.00019177,2]
[314978693,1708713037866,-500.0,0.00019178,2]
[314978695,1708713037876,-986.41,0.00019178,2]
[314978697,1708713037885,-500.0,0.00019178,2]
[314978699,1708713037894,-500.0,0.00019178,2]
[314978701,1708713037904,-500.0,0.00019178,2]
[314978703,1708713037913,-469.85555092,0.00019178,2]
[314978724,1708713041041,-169.26444908,0.00019178,2]
[314978725,1708713041050,-459.86338272,0.00019178,2]
[314978726,1708713041062,-40.13661728,0.00019178,2]
[314978727,1708713041071,-296.73555092,0.00019178,2]
[314979015,1708713557757,233.363329,0.0001795,2]
[314979080,1708714007688,233.363329,0.00017947,2]
[314979081,1708714012797,8230.0382401,0.00017947,2]
[314979124,1708714232000,-778.26764587,0.00018336,2]
[314979125,1708714232012,-2335.75343141,0.00018336,2]
[314979126,1708714232021,-5.47810388,0.00018337,2]
[314979128,1708714232061,-1585.19074291,0.00018337,2]
[314979129,1708714232070,-161.75461704,0.00019078,2]
[314979130,1708714232079,-300.0,0.00019177,2]
[314979131,1708714232088,-500.0,0.00019178,2]
[314979132,1708714232097,-236.26386386,0.00019178,2]
[314979133,1708714232107,-752.6,0.00019178,2]
[314979134,1708714232116,-500.0,0.00019178,2]
[314979136,1708714232125,-500.0,0.00019178,2]
[314979138,1708714232135,-500.0,0.00019178,2]
[314979140,1708714232144,-500.0,0.00019178,2]
[314979141,1708714232154,-492.13616305,0.00019178,2]
[314979143,1708714232162,-1891.57,0.00019178,2]
[314979145,1708714232172,-500.0,0.00019178,2]
[314979147,1708714232181,-923.11,0.00019178,2]
[314979149,1708714232190,-2042.21,0.00019178,2]
[314979151,1708714232199,-600.0,0.00019178,2]
[314979153,1708714232208,-452.30641354,0.00019178,2]
[314979155,1708714232217,-500.0,0.00019178,2]
[314979157,1708714232226,-500.0,0.00019178,2]
[314979159,1708714232235,-589.35,0.00019178,2]
[314979160,1708714232243,-500.0,0.00019178,2]
[314979162,1708714232252,-500.0,0.00019178,2]
[314979164,1708714232261,-500.0,0.00019178,2]
[314979166,1708714232271,-500.0,0.00019178,2]
[314979167,1708714232280,-500.0,0.00019178,2]
[314979168,1708714232290,-995.6,0.00019178,2]
[314979169,1708714232299,-637.45,0.00019178,2]
[314979170,1708714232307,-500.0,0.00019178,2]
[314979171,1708714232316,-500.0,0.00019178,2]
[314979172,1708714232325,-500.0,0.00019178,2]
[314979173,1708714232334,-783.82,0.00019178,2]
[314979174,1708714232343,-500.0,0.00019178,2]
[314979175,1708714232352,-500.0,0.00019178,2]
[314979176,1708714232361,-1153.09,0.00019178,2]
[314979177,1708714232370,-500.0,0.00019178,2]
[314979178,1708714232379,-500.0,0.00019178,2]
[314979179,1708714232388,-1077.0,0.00019178,2]
[314979180,1708714232397,-275.25007691,0.00019178,2]
[314979181,1708714232405,-500.0,0.00019178,2]
[314979182,1708714232414,-945.31,0.00019178,2]
[314979183,1708714232423,-627.96,0.00019178,2]
[314979184,1708714232432,-500.0,0.00019178,2]
[314979185,1708714232441,-500.0,0.00019178,2]
[314979186,1708714232450,-180.07645479,0.00019178,2]
[314979187,1708714232458,-849.19,0.00019178,2]
[314979188,1708714232467,-983.47,0.00019178,2]
[314979189,1708714232477,-565.98,0.00019178,2]
[314979190,1708714232489,-1195.03,0.00019178,2]
[314979191,1708714232498,-271.2184854,0.00019178,2]
[314979192,1708714232508,-2222.31,0.00019178,2]
[314979193,1708714232517,-4152.76,0.00019178,2]
[314979194,1708714232527,-4955.45,0.00019178,2]
[314979195,1708714232536,-1073.71,0.00019178,2]
[314979196,1708714232545,-2300.4347745,0.00019178,2]
[314979527,1708714241238,-9876.4052255,0.00019178,2]
[314979529,1708714241248,-1714.45,0.00019178,2]
[314979531,1708714241259,-500.0,0.00019178,2]
[314979533,1708714241268,-612.49,0.00019178,2]
[314979536,1708714241278,-500.0,0.00019178,2]
[314979537,1708714241288,-1611.16,0.00019178,2]
[314979539,1708714241297,-384.115112,0.00019178,2]
[314979542,1708714241308,-5.59274535,0.00019178,2]
[314979544,1708714241318,-1480.91,0.00019178,2]
[314979546,1708714241327,-943.63,0.00019178,2]
[314979548,1708714241336,-507.45476704,0.00019178,2]
[314979551,1708714241353,-869.60523296,0.00019178,2]
[314979553,1708714241363,-435.45994251,0.00019178,2]
[314979741,1708714243085,-599.94005749,0.00019178,2]
[314979743,1708714243095,-565.94794607,0.00019178,2]
[314979749,1708714243144,-568.0000004,0.00019178,2]
[314979969,1708714246118,-70.61205353,0.00019178,2]
[314979972,1708714246127,-500.0,0.00019178,2]
[314979974,1708714246136,-500.0,0.00019178,2]
[314979976,1708714246145,-528.77536564,0.00019178,2]
[314979978,1708714246154,-436.8929098,0.00019178,2]
[314979980,1708714246164,-500.0,0.00019178,2]
[314979982,1708714246173,-6668.32,0.00019178,2]
[314979984,1708714246182,-5332.17074518,0.00019178,2]
[314979986,1708714246194,-2802.23102925,0.00019178,2]
[314979988,1708714246206,-274.98327931,0.00019178,2]
[314980702,1708714714170,250.0,0.00018062,2]
[314980705,1708714988194,3114.02107728,0.00018099,2]
[314980707,1708715019316,1590.66884679,0.00018099,2]
[314980727,1708715175216,1622.40498126,0.00018099,2]
[314980740,1708715366235,1622.40498126,0.00018099,2]
[314980789,1708715432245,-3723.5280551,0.000181,2]
[314980793,1708715432257,-5435.0550864,0.000181,2]
[314980795,1708715432266,-3484.2675263,0.000181,2]
[314980797,1708715432275,-246.74750651,0.00018978,2]
[314980799,1708715432284,-8698.0154907,0.00018998,2]
[314980801,1708715432294,-161.75461704,0.00019078,2]
[314980803,1708715432304,-186.45037876,0.00019078,2]
[314980805,1708715432313,-463.15,0.00019168,3]
[314980806,1708715432322,-540.31,0.00019168,3]
[314980808,1708715432331,-270.15,0.00019168,3]
[314980810,1708715432340,-810.48,0.00019168,3]
[314980812,1708715432350,-161.75461704,0.00019169,2]
[314980813,1708715432360,-1006.03894291,0.00019177,2]
[314980814,1708715432370,-500.0,0.00019178,2]
[314980815,1708715432379,-500.0,0.00019178,2]
[314980816,1708715432388,-500.0,0.00019178,2]
[314980817,1708715432397,-500.0,0.00019178,2]
[314980818,1708715432407,-1812.75,0.00019178,2]
[314980819,1708715432416,-512.22661037,0.00019178,2]
[314980820,1708715432425,-884.64,0.00019178,2]
[314980821,1708715432434,-610.89,0.00019178,2]
[314980822,1708715432444,-1957.11,0.00019178,2]
[314980823,1708715432453,-500.0,0.00019178,2]
[314980824,1708715432463,-500.0,0.00019178,2]
[314980825,1708715432473,-905.92,0.00019178,2]
[314980826,1708715432483,-262.46017304,0.00019178,2]
[314980827,1708715432493,-500.0,0.00019178,2]
[314980828,1708715432503,-500.0,0.00019178,2]
[314980829,1708715432512,-583.63868369,0.00019178,2]
[314980830,1708715432522,-564.8,0.00019178,2]
[314980831,1708715432532,-500.0,0.00019178,2]
[314980832,1708715432542,-500.0,0.00019178,2]
[314980833,1708715432551,-500.0,0.00019178,2]
[314980834,1708715432561,-500.0,0.00019178,2]
[314980835,1708715432570,-500.0,0.00019178,2]
[314980836,1708715432580,-500.0,0.00019178,2]
[314980837,1708715432588,-500.0,0.00019178,2]
[314980838,1708715432598,-619.72,0.00019178,2]
[314980839,1708715432608,-500.0,0.00019178,2]
[314980840,1708715432618,-500.0,0.00019178,2]
[314980841,1708715432627,-768.36511602,0.00019178,2]
[314980842,1708715432640,-185.75488398,0.00019178,2]
[314980843,1708715432650,-500.0,0.00019178,2]
[314980844,1708715432659,-408.99080361,0.00019178,2]
[314980845,1708715432668,-500.0,0.00019178,2]
[314980846,1708715432678,-500.0,0.00019178,2]
[314980847,1708715432687,-500.0,0.00019178,2]
[314980848,1708715432697,-500.0,0.00019178,2]
[314980849,1708715432706,-500.0,0.00019178,2]
[314980850,1708715432716,-623.13,0.00019178,2]
[314980851,1708715432725,-500.0,0.00019178,2]
[314980852,1708715432734,-481.75656661,0.00019178,2]
[314981518,1708715446271,-1622.40498126,0.00019177,2]
[314981520,1708715446281,-550.36343339,0.00019178,2]
[314981522,1708715446291,-500.0,0.00019178,2]
[314981524,1708715446301,-721.24,0.00019178,2]
[314981526,1708715446311,-500.0,0.00019178,2]
[314981528,1708715446321,-2129.71,0.00019178,2]
[314981530,1708715446330,-500.0,0.00019178,2]
[314981532,1708715446340,-370.37465467,0.00019178,2]
[314981534,1708715446349,-838.38,0.00019178,2]
[314981536,1708715446358,-4179.42,0.00019178,2]
[314981538,1708715446367,-500.0,0.00019178,2]
[314981540,1708715446377,-4844.09,0.00019178,2]
[314981542,1708715446386,-563.23,0.00019178,2]
[314981544,1708715446395,-558.11059193,0.00019178,2]
[314981546,1708715446408,-587.12940807,0.00019178,2]
[314981548,1708715446417,-267.16877444,0.00019178,2]
[314981550,1708715446426,-321.70181749,0.00019178,2]
[314981553,1708715446438,-1321.31818251,0.00019178,2]
[314981555,1708715446448,-232.08335974,0.00019178,2]
[314981556,1708715446458,-1110.64,0.00019178,2]
[314981558,1708715446468,-500.0,0.00019178,2]
[314981560,1708715446477,-657.50844275,0.00019178,2]
[314986651,1708716632386,-1622.40498126,0.00018218,2]
[314986652,1708716632395,-385.891718,0.00018219,2]
[314986653,1708716632405,-2836.19129973,0.00019,2]
[314986654,1708716632414,-161.75461704,0.00019078,2]
[314986655,1708716632423,-270.15,0.00019168,3]
[314986656,1708716632433,-810.47,0.00019168,3]
[314986658,1708716632442,-500.0,0.00019178,2]
[314986659,1708716632451,-292.2679784,0.00019178,2]
[314986661,1708716632460,-500.0,0.00019178,2]
[314986663,1708716632469,-500.0,0.00019178,2]
[314986665,1708716632478,-500.0,0.00019178,2]
[314986667,1708716632486,-644.94,0.00019178,2]
[314986669,1708716632495,-505.98777595,0.00019178,2]
[314986671,1708716632505,-500.0,0.00019178,2]
[314986673,1708716632514,-500.0,0.00019178,2]
[314986675,1708716632523,-500.0,0.00019178,2]
[314986677,1708716632532,-500.0,0.00019178,2]
[314986678,1708716632541,-500.0,0.00019178,2]
[314986679,1708716632550,-529.4798309,0.00019178,2]
[314986680,1708716632559,-500.0,0.00019178,2]
[314986681,1708716632568,-500.0,0.00019178,2]
[314986682,1708716632577,-182.0261403,0.00019178,2]
[314986683,1708716632586,-617.33,0.00019178,2]
[314986684,1708716632595,-500.0,0.00019178,2]
[314986685,1708716632605,-500.0,0.00019178,2]
[314986686,1708716632614,-500.0,0.00019178,2]
[314986687,1708716632623,-500.0,0.00019178,2]
[314986688,1708716632633,-471.86611054,0.00019178,2]
[314986689,1708716632645,-28.13388946,0.00019178,2]
[314986690,1708716632654,-500.0,0.00019178,2]
[314986691,1708716632663,-629.51,0.00019178,2]
[314986692,1708716632672,-500.0,0.00019178,2]
[314986693,1708716632681,-144.0179984,0.00019178,2]
[314986694,1708716632692,-355.9820016,0.00019178,2]
[314986695,1708716632702,-410.50236005,0.00019178,2]
[314986734,1708716638394,-232.40988876,0.00019178,2]
[314986736,1708716638404,-500.0,0.00019178,2]
[314986738,1708716638413,-500.0,0.00019178,2]
[314986740,1708716638422,-500.0,0.00019178,2]
[314986742,1708716638431,-500.0,0.00019178,2]
[314986744,1708716638440,-500.0,0.00019178,2]
[314986746,1708716638448,-511.50970154,0.00019178,2]
[314986748,1708716638458,-301.40434877,0.00019178,2]
[314986750,1708716638467,-372.69581787,0.00019178,2]
[314986752,1708716638478,-127.30418213,0.00019178,2]
[314986754,1708716638487,-500.0,0.00019178,2]
[314986756,1708716638496,-500.0,0.00019178,2]
[314986758,1708716638505,-500.0,0.00019178,2]
[314986759,1708716638513,-500.0,0.00019178,2]
[314986761,1708716638522,-500.0,0.00019178,2]
[314986763,1708716638531,-500.0,0.00019178,2]
[314986765,1708716638540,-500.0,0.00019178,2]
[314986767,1708716638549,-500.0,0.00019178,2]
[314986769,1708716638558,-372.90861864,0.00019178,2]
[314986770,1708716638569,-453.22118573,0.00019178,2]
[314986772,1708716638580,-1041.34019563,0.00019178,2]
[314986773,1708716638589,-898.32,0.00019178,2]
[314986774,1708716638598,-151.0,0.00019178,2]
[314986775,1708716638606,-196.63822682,0.00019178,2]
[314986776,1708716638616,-1742.83177318,0.00019178,2]
[314986777,1708716638625,-500.0,0.00019178,2]
[314986778,1708716638634,-528.46,0.00019178,2]
[314986779,1708716638643,-500.65752268,0.00019178,2]
[314986780,1708716638651,-500.0,0.00019178,2]
[314986781,1708716638660,-500.0,0.00019178,2]
[314986782,1708716638669,-500.0,0.00019178,2]
[314986783,1708716638678,-500.0,0.00019178,2]
[314986784,1708716638686,-707.04,0.00019178,2]
[314986785,1708716638695,-500.7936119,0.00019178,2]
[314986786,1708716638704,-500.0,0.00019178,2]
[314986787,1708716638712,-495.26917677,0.00019178,2]
[314986788,1708716638721,-500.0,0.00019178,2]
[314986789,1708716638730,-573.82,0.00019178,2]
[314986790,1708716638739,-505.1273313,0.00019178,2]
[314986791,1708716638748,-500.0,0.00019178,2]
[314986792,1708716638757,-500.0,0.00019178,2]
[314986793,1708716638766,-500.0,0.00019178,2]
[314986794,1708716638774,-500.0,0.00019178,2]
[314986795,1708716638783,-500.0,0.00019178,2]
[314986796,1708716638792,-496.5241093,0.00019178,2]
[314986797,1708716638801,-500.0,0.00019178,2]
[314986798,1708716638810,-409.49484285,0.00019178,2]
[314986799,1708716638819,-500.0,0.00019178,2]
[314986800,1708716638828,-500.0,0.00019178,2]
[314986801,1708716638836,-500.0,0.00019178,2]
[314986802,1708716638845,-500.0,0.00019178,2]
[314986803,1708716638854,-500.0,0.00019178,2]
[314986804,1708716638863,-500.0,0.00019178,2]
[314986805,1708716638873,-500.0,0.00019178,2]
[314986806,1708716638881,-500.0,0.00019178,2]
[314986807,1708716638890,-500.0,0.00019178,2]
[314986808,1708716638899,-506.7239864,0.00019178,2]
[314986810,1708716638908,-500.49679597,0.00019178,2]
[314986812,1708716638918,-500.0,0.00019178,2]
[314986814,1708716638926,-500.0,0.00019178,2]
[314986816,1708716638936,-500.0,0.00019178,2]
[314986830,1708716639067,-500.0,0.00019178,2]
[314986832,1708716639077,-500.0,0.00019178,2]
[314986834,1708716639087,-500.0,0.00019178,2]
[314986836,1708716639096,-500.0,0.00019178,2]
[314986838,1708716639106,-500.0,0.00019178,2]
[314986840,1708716639117,-500.0,0.00019178,2]
[314986842,1708716639127,-500.0,0.00019178,2]
[314986844,1708716639137,-997.98,0.00019178,2]
[314986846,1708716639146,-500.0,0.00019178,2]
[314986848,1708716639155,-515.12224836,0.00019178,2]
[314986850,1708716639165,-500.0,0.00019178,2]
[314986852,1708716639175,-500.0,0.00019178,2]
[314986854,1708716639184,-502.18525124,0.00019178,2]
[314986856,1708716639193,-500.0,0.00019178,2]
[314986858,1708716639203,-500.0,0.00019178,2]
[314986860,1708716639212,-495.29967306,0.00019178,2]
[314986862,1708716639222,-500.0,0.00019178,2]
[314986864,1708716639234,-500.45562564,0.00019178,2]
[314986866,1708716639243,-500.0,0.00019178,2]
[314986868,1708716639252,-500.0,0.00019178,2]
[314986870,1708716639261,-500.0,0.00019178,2]